{"text_format":"1","workbook":"xlsx","n_sheets":3,"sheets":["Año>=100","Fechas","Idiomas"],"not_rendered":{"charts":0,"images":1,"macros":1,"external_links":0,"defined_names":47,"comments":2,"pivot_tables":0},"unopened":[],"bounds":{"document_bytes":16777216,"sheet_cells":100000,"rows_first":2000,"rows_last":500,"rows_between":2000,"halvings":0,"cell_chars":16384,"cell_head_chars":4096},"cells_cut":0,"cells_raw":0,"read":"whole","date_system":"1900"}

{"sheet":"Año>=100","index":0,"n_rows":50,"n_cols":27,"rows_kept":50,"cut":false,"hidden":false,"merged":[[24,0,24,26],[2,11,2,12],[2,14,2,15],[4,11,4,14],[21,3,21,9],[4,20,4,23],[4,2,4,5],[15,1,15,24],[16,1,18,6],[16,7,18,12],[16,13,18,18],[16,19,18,24],[36,20,36,21],[37,20,37,21],[26,2,26,5],[26,11,26,14],[26,20,26,23],[48,20,48,21],[49,20,49,21],[2,6,2,7],[1,6,1,7],[43,20,43,21],[44,20,44,21],[45,20,45,21],[46,20,46,21],[47,20,47,21],[38,20,38,21],[39,20,39,21],[40,20,40,21],[41,20,41,21],[42,20,42,21],[22,3,22,12],[35,20,35,21]]}
[]
[null,{"$f":"Idiomas!$A$18","v":"Calendario Gregoriano desde:"},null,null,null,null,"15-10-1582",null,null,null,null,null,null,{"$f":"IF($J$27<Rango_Inicio_Gregoriano_Serie,Idiomas!$A$5,Idiomas!$A$4)","v":"Calendario Gregoriano"},null,null,null,null,null,null,null,null,null,null,{"$f":"Idiomas!$A$6 & \" \"","v":"La semana comienza en "},"1900-01-02"]
[null,{"$f":"Idiomas!$A$17","v":"Idioma:"},null,null,null,null,"Español",null,null,null,null,{"$f":"$G$2","v":"15-10-1582"},null,"¦","9999-12-31",null,null,null,null,null,null,null,null,null,{"$f":"Idiomas!$A$7 & \" \"","v":"Muestra los días de otros meses "},"û"]
[null,null,null,null,null,null,null,null,null,null,null,null,null,null,null,"×","Ø"]
[null,{"$f":"IF(Rango_MesNum=1,12,Rango_MesNum-1)","v":10},{"$f":"INDEX(Rango_MesesNom,B5)","v":"2024-10-01"},null,null,null,{"$f":"G27","v":"15"},{"$f":"H27","v":"82"},null,"×",{"$f":"VLOOKUP(Rango_MesNom,X39:Z50,3,FALSE)","v":11},"2024-11-01",null,null,null,15,82,"Ø",null,{"$f":"IF(Rango_MesNum=12,1,Rango_MesNum+1)","v":12},{"$f":"INDEX(Rango_MesesNom,T5)","v":"2024-12-01"},null,null,null,{"$f":"Y27","v":"15"},{"$f":"Z27","v":"82"}]
[null,{"$f":"Rango_DíaSemana","v":"1900-01-02"},{"$f":"B6+1","v":"1900-01-03"},{"$f":"C6+1","v":"1900-01-04"},"1900-01-05","1900-01-06","1900-01-07","1900-01-08",null,null,{"$f":"Rango_DíaSemana","v":"1900-01-02"},{"$f":"K6+1","v":"1900-01-03"},{"$f":"L6+1","v":"1900-01-04"},"1900-01-05","1900-01-06","1900-01-07","1900-01-08",null,null,{"$f":"Rango_DíaSemana","v":"1900-01-02"},{"$f":"T6+1","v":"1900-01-03"},{"$f":"U6+1","v":"1900-01-04"},"1900-01-05","1900-01-06","1900-01-07","1900-01-08"]
[null,{"$f":"HYPERLINK(MouseOver(B29),IFERROR(IF(OR($Z$3=\"ü\",ObtenerMesVBA(B29)=$B$5),ObtenerDíaVBA(B29),\"\"),\"\"))","v":""},{"$f":"HYPERLINK(MouseOver(C29),IFERROR(IF(OR($Z$3=\"ü\",ObtenerMesVBA(C29)=$B$5),ObtenerDíaVBA(C29),\"\"),\"\"))","v":""},{"$f":"HYPERLINK(MouseOver(D29),IFERROR(IF(OR($Z$3=\"ü\",ObtenerMesVBA(D29)=$B$5),ObtenerDíaVBA(D29),\"\"),\"\"))","v":""},{"$f":"HYPERLINK(MouseOver(E29),IFERROR(IF(OR($Z$3=\"ü\",ObtenerMesVBA(E29)=$B$5),ObtenerDíaVBA(E29),\"\"),\"\"))","v":""},{"$f":"HYPERLINK(MouseOver(F29),IFERROR(IF(OR($Z$3=\"ü\",ObtenerMesVBA(F29)=$B$5),ObtenerDíaVBA(F29),\"\"),\"\"))","v":1},{"$f":"HYPERLINK(MouseOver(G29),IFERROR(IF(OR($Z$3=\"ü\",ObtenerMesVBA(G29)=$B$5),ObtenerDíaVBA(G29),\"\"),\"\"))","v":2},{"$f":"HYPERLINK(MouseOver(H29),IFERROR(IF(OR($Z$3=\"ü\",ObtenerMesVBA(H29)=$B$5),ObtenerDíaVBA(H29),\"\"),\"\"))","v":3},null,null,{"$f":"HYPERLINK(MouseOver(K29),IFERROR(IF(OR($Z$3=\"ü\",ObtenerMesVBA(K29)=$K$5),ObtenerDíaVBA(K29),\"\"),\"\"))","v":1},{"$f":"HYPERLINK(MouseOver(L29),IFERROR(IF(OR($Z$3=\"ü\",ObtenerMesVBA(L29)=$K$5),ObtenerDíaVBA(L29),\"\"),\"\"))","v":2},{"$f":"HYPERLINK(MouseOver(M29),IFERROR(IF(OR($Z$3=\"ü\",ObtenerMesVBA(M29)=$K$5),ObtenerDíaVBA(M29),\"\"),\"\"))","v":3},{"$f":"HYPERLINK(MouseOver(N29),IFERROR(IF(OR($Z$3=\"ü\",ObtenerMesVBA(N29)=$K$5),ObtenerDíaVBA(N29),\"\"),\"\"))","v":4},{"$f":"HYPERLINK(MouseOver(O29),IFERROR(IF(OR($Z$3=\"ü\",ObtenerMesVBA(O29)=$K$5),ObtenerDíaVBA(O29),\"\"),\"\"))","v":5},{"$f":"HYPERLINK(MouseOver(P29),IFERROR(IF(OR($Z$3=\"ü\",ObtenerMesVBA(P29)=$K$5),ObtenerDíaVBA(P29),\"\"),\"\"))","v":6},{"$f":"HYPERLINK(MouseOver(Q29),IFERROR(IF(OR($Z$3=\"ü\",ObtenerMesVBA(Q29)=$K$5),ObtenerDíaVBA(Q29),\"\"),\"\"))","v":7},null,null,{"$f":"HYPERLINK(MouseOver(T29),IFERROR(IF(OR($Z$3=\"ü\",ObtenerMesVBA(T29)=$T$5),ObtenerDíaVBA(T29),\"\"),\"\"))","v":""},{"$f":"HYPERLINK(MouseOver(U29),IFERROR(IF(OR($Z$3=\"ü\",ObtenerMesVBA(U29)=$T$5),ObtenerDíaVBA(U29),\"\"),\"\"))","v":""},{"$f":"HYPERLINK(MouseOver(V29),IFERROR(IF(OR($Z$3=\"ü\",ObtenerMesVBA(V29)=$T$5),ObtenerDíaVBA(V29),\"\"),\"\"))","v":1},{"$f":"HYPERLINK(MouseOver(W29),IFERROR(IF(OR($Z$3=\"ü\",ObtenerMesVBA(W29)=$T$5),ObtenerDíaVBA(W29),\"\"),\"\"))","v":2},{"$f":"HYPERLINK(MouseOver(X29),IFERROR(IF(OR($Z$3=\"ü\",ObtenerMesVBA(X29)=$T$5),ObtenerDíaVBA(X29),\"\"),\"\"))","v":3},{"$f":"HYPERLINK(MouseOver(Y29),IFERROR(IF(OR($Z$3=\"ü\",ObtenerMesVBA(Y29)=$T$5),ObtenerDíaVBA(Y29),\"\"),\"\"))","v":4},{"$f":"HYPERLINK(MouseOver(Z29),IFERROR(IF(OR($Z$3=\"ü\",ObtenerMesVBA(Z29)=$T$5),ObtenerDíaVBA(Z29),\"\"),\"\"))","v":5}]
[null,{"$f":"HYPERLINK(MouseOver(B30),IFERROR(IF(OR($Z$3=\"ü\",ObtenerMesVBA(B30)=$B$5),ObtenerDíaVBA(B30),\"\"),\"\"))","v":4},{"$f":"HYPERLINK(MouseOver(C30),IFERROR(IF(OR($Z$3=\"ü\",ObtenerMesVBA(C30)=$B$5),ObtenerDíaVBA(C30),\"\"),\"\"))","v":5},{"$f":"HYPERLINK(MouseOver(D30),IFERROR(IF(OR($Z$3=\"ü\",ObtenerMesVBA(D30)=$B$5),ObtenerDíaVBA(D30),\"\"),\"\"))","v":6},{"$f":"HYPERLINK(MouseOver(E30),IFERROR(IF(OR($Z$3=\"ü\",ObtenerMesVBA(E30)=$B$5),ObtenerDíaVBA(E30),\"\"),\"\"))","v":7},{"$f":"HYPERLINK(MouseOver(F30),IFERROR(IF(OR($Z$3=\"ü\",ObtenerMesVBA(F30)=$B$5),ObtenerDíaVBA(F30),\"\"),\"\"))","v":8},{"$f":"HYPERLINK(MouseOver(G30),IFERROR(IF(OR($Z$3=\"ü\",ObtenerMesVBA(G30)=$B$5),ObtenerDíaVBA(G30),\"\"),\"\"))","v":9},{"$f":"HYPERLINK(MouseOver(H30),IFERROR(IF(OR($Z$3=\"ü\",ObtenerMesVBA(H30)=$B$5),ObtenerDíaVBA(H30),\"\"),\"\"))","v":10},null,null,{"$f":"HYPERLINK(MouseOver(K30),IFERROR(IF(OR($Z$3=\"ü\",ObtenerMesVBA(K30)=$K$5),ObtenerDíaVBA(K30),\"\"),\"\"))","v":8},{"$f":"HYPERLINK(MouseOver(L30),IFERROR(IF(OR($Z$3=\"ü\",ObtenerMesVBA(L30)=$K$5),ObtenerDíaVBA(L30),\"\"),\"\"))","v":9},{"$f":"HYPERLINK(MouseOver(M30),IFERROR(IF(OR($Z$3=\"ü\",ObtenerMesVBA(M30)=$K$5),ObtenerDíaVBA(M30),\"\"),\"\"))","v":10},{"$f":"HYPERLINK(MouseOver(N30),IFERROR(IF(OR($Z$3=\"ü\",ObtenerMesVBA(N30)=$K$5),ObtenerDíaVBA(N30),\"\"),\"\"))","v":11},{"$f":"HYPERLINK(MouseOver(O30),IFERROR(IF(OR($Z$3=\"ü\",ObtenerMesVBA(O30)=$K$5),ObtenerDíaVBA(O30),\"\"),\"\"))","v":12},{"$f":"HYPERLINK(MouseOver(P30),IFERROR(IF(OR($Z$3=\"ü\",ObtenerMesVBA(P30)=$K$5),ObtenerDíaVBA(P30),\"\"),\"\"))","v":13},{"$f":"HYPERLINK(MouseOver(Q30),IFERROR(IF(OR($Z$3=\"ü\",ObtenerMesVBA(Q30)=$K$5),ObtenerDíaVBA(Q30),\"\"),\"\"))","v":14},null,null,{"$f":"HYPERLINK(MouseOver(T30),IFERROR(IF(OR($Z$3=\"ü\",ObtenerMesVBA(T30)=$T$5),ObtenerDíaVBA(T30),\"\"),\"\"))","v":6},{"$f":"HYPERLINK(MouseOver(U30),IFERROR(IF(OR($Z$3=\"ü\",ObtenerMesVBA(U30)=$T$5),ObtenerDíaVBA(U30),\"\"),\"\"))","v":7},{"$f":"HYPERLINK(MouseOver(V30),IFERROR(IF(OR($Z$3=\"ü\",ObtenerMesVBA(V30)=$T$5),ObtenerDíaVBA(V30),\"\"),\"\"))","v":8},{"$f":"HYPERLINK(MouseOver(W30),IFERROR(IF(OR($Z$3=\"ü\",ObtenerMesVBA(W30)=$T$5),ObtenerDíaVBA(W30),\"\"),\"\"))","v":9},{"$f":"HYPERLINK(MouseOver(X30),IFERROR(IF(OR($Z$3=\"ü\",ObtenerMesVBA(X30)=$T$5),ObtenerDíaVBA(X30),\"\"),\"\"))","v":10},{"$f":"HYPERLINK(MouseOver(Y30),IFERROR(IF(OR($Z$3=\"ü\",ObtenerMesVBA(Y30)=$T$5),ObtenerDíaVBA(Y30),\"\"),\"\"))","v":11},{"$f":"HYPERLINK(MouseOver(Z30),IFERROR(IF(OR($Z$3=\"ü\",ObtenerMesVBA(Z30)=$T$5),ObtenerDíaVBA(Z30),\"\"),\"\"))","v":12}]
[null,{"$f":"HYPERLINK(MouseOver(B31),IFERROR(IF(OR($Z$3=\"ü\",ObtenerMesVBA(B31)=$B$5),ObtenerDíaVBA(B31),\"\"),\"\"))","v":11},{"$f":"HYPERLINK(MouseOver(C31),IFERROR(IF(OR($Z$3=\"ü\",ObtenerMesVBA(C31)=$B$5),ObtenerDíaVBA(C31),\"\"),\"\"))","v":12},{"$f":"HYPERLINK(MouseOver(D31),IFERROR(IF(OR($Z$3=\"ü\",ObtenerMesVBA(D31)=$B$5),ObtenerDíaVBA(D31),\"\"),\"\"))","v":13},{"$f":"HYPERLINK(MouseOver(E31),IFERROR(IF(OR($Z$3=\"ü\",ObtenerMesVBA(E31)=$B$5),ObtenerDíaVBA(E31),\"\"),\"\"))","v":14},{"$f":"HYPERLINK(MouseOver(F31),IFERROR(IF(OR($Z$3=\"ü\",ObtenerMesVBA(F31)=$B$5),ObtenerDíaVBA(F31),\"\"),\"\"))","v":15},{"$f":"HYPERLINK(MouseOver(G31),IFERROR(IF(OR($Z$3=\"ü\",ObtenerMesVBA(G31)=$B$5),ObtenerDíaVBA(G31),\"\"),\"\"))","v":16},{"$f":"HYPERLINK(MouseOver(H31),IFERROR(IF(OR($Z$3=\"ü\",ObtenerMesVBA(H31)=$B$5),ObtenerDíaVBA(H31),\"\"),\"\"))","v":17},null,null,{"$f":"HYPERLINK(MouseOver(K31),IFERROR(IF(OR($Z$3=\"ü\",ObtenerMesVBA(K31)=$K$5),ObtenerDíaVBA(K31),\"\"),\"\"))","v":15},{"$f":"HYPERLINK(MouseOver(L31),IFERROR(IF(OR($Z$3=\"ü\",ObtenerMesVBA(L31)=$K$5),ObtenerDíaVBA(L31),\"\"),\"\"))","v":16},{"$f":"HYPERLINK(MouseOver(M31),IFERROR(IF(OR($Z$3=\"ü\",ObtenerMesVBA(M31)=$K$5),ObtenerDíaVBA(M31),\"\"),\"\"))","v":17},{"$f":"HYPERLINK(MouseOver(N31),IFERROR(IF(OR($Z$3=\"ü\",ObtenerMesVBA(N31)=$K$5),ObtenerDíaVBA(N31),\"\"),\"\"))","v":18},{"$f":"HYPERLINK(MouseOver(O31),IFERROR(IF(OR($Z$3=\"ü\",ObtenerMesVBA(O31)=$K$5),ObtenerDíaVBA(O31),\"\"),\"\"))","v":19},{"$f":"HYPERLINK(MouseOver(P31),IFERROR(IF(OR($Z$3=\"ü\",ObtenerMesVBA(P31)=$K$5),ObtenerDíaVBA(P31),\"\"),\"\"))","v":20},{"$f":"HYPERLINK(MouseOver(Q31),IFERROR(IF(OR($Z$3=\"ü\",ObtenerMesVBA(Q31)=$K$5),ObtenerDíaVBA(Q31),\"\"),\"\"))","v":21},null,null,{"$f":"HYPERLINK(MouseOver(T31),IFERROR(IF(OR($Z$3=\"ü\",ObtenerMesVBA(T31)=$T$5),ObtenerDíaVBA(T31),\"\"),\"\"))","v":13},{"$f":"HYPERLINK(MouseOver(U31),IFERROR(IF(OR($Z$3=\"ü\",ObtenerMesVBA(U31)=$T$5),ObtenerDíaVBA(U31),\"\"),\"\"))","v":14},{"$f":"HYPERLINK(MouseOver(V31),IFERROR(IF(OR($Z$3=\"ü\",ObtenerMesVBA(V31)=$T$5),ObtenerDíaVBA(V31),\"\"),\"\"))","v":15},{"$f":"HYPERLINK(MouseOver(W31),IFERROR(IF(OR($Z$3=\"ü\",ObtenerMesVBA(W31)=$T$5),ObtenerDíaVBA(W31),\"\"),\"\"))","v":16},{"$f":"HYPERLINK(MouseOver(X31),IFERROR(IF(OR($Z$3=\"ü\",ObtenerMesVBA(X31)=$T$5),ObtenerDíaVBA(X31),\"\"),\"\"))","v":17},{"$f":"HYPERLINK(MouseOver(Y31),IFERROR(IF(OR($Z$3=\"ü\",ObtenerMesVBA(Y31)=$T$5),ObtenerDíaVBA(Y31),\"\"),\"\"))","v":18},{"$f":"HYPERLINK(MouseOver(Z31),IFERROR(IF(OR($Z$3=\"ü\",ObtenerMesVBA(Z31)=$T$5),ObtenerDíaVBA(Z31),\"\"),\"\"))","v":19}]
[null,{"$f":"HYPERLINK(MouseOver(B32),IFERROR(IF(OR($Z$3=\"ü\",ObtenerMesVBA(B32)=$B$5),ObtenerDíaVBA(B32),\"\"),\"\"))","v":18},{"$f":"HYPERLINK(MouseOver(C32),IFERROR(IF(OR($Z$3=\"ü\",ObtenerMesVBA(C32)=$B$5),ObtenerDíaVBA(C32),\"\"),\"\"))","v":19},{"$f":"HYPERLINK(MouseOver(D32),IFERROR(IF(OR($Z$3=\"ü\",ObtenerMesVBA(D32)=$B$5),ObtenerDíaVBA(D32),\"\"),\"\"))","v":20},{"$f":"HYPERLINK(MouseOver(E32),IFERROR(IF(OR($Z$3=\"ü\",ObtenerMesVBA(E32)=$B$5),ObtenerDíaVBA(E32),\"\"),\"\"))","v":21},{"$f":"HYPERLINK(MouseOver(F32),IFERROR(IF(OR($Z$3=\"ü\",ObtenerMesVBA(F32)=$B$5),ObtenerDíaVBA(F32),\"\"),\"\"))","v":22},{"$f":"HYPERLINK(MouseOver(G32),IFERROR(IF(OR($Z$3=\"ü\",ObtenerMesVBA(G32)=$B$5),ObtenerDíaVBA(G32),\"\"),\"\"))","v":23},{"$f":"HYPERLINK(MouseOver(H32),IFERROR(IF(OR($Z$3=\"ü\",ObtenerMesVBA(H32)=$B$5),ObtenerDíaVBA(H32),\"\"),\"\"))","v":24},null,null,{"$f":"HYPERLINK(MouseOver(K32),IFERROR(IF(OR($Z$3=\"ü\",ObtenerMesVBA(K32)=$K$5),ObtenerDíaVBA(K32),\"\"),\"\"))","v":22},{"$f":"HYPERLINK(MouseOver(L32),IFERROR(IF(OR($Z$3=\"ü\",ObtenerMesVBA(L32)=$K$5),ObtenerDíaVBA(L32),\"\"),\"\"))","v":23},{"$f":"HYPERLINK(MouseOver(M32),IFERROR(IF(OR($Z$3=\"ü\",ObtenerMesVBA(M32)=$K$5),ObtenerDíaVBA(M32),\"\"),\"\"))","v":24},{"$f":"HYPERLINK(MouseOver(N32),IFERROR(IF(OR($Z$3=\"ü\",ObtenerMesVBA(N32)=$K$5),ObtenerDíaVBA(N32),\"\"),\"\"))","v":25},{"$f":"HYPERLINK(MouseOver(O32),IFERROR(IF(OR($Z$3=\"ü\",ObtenerMesVBA(O32)=$K$5),ObtenerDíaVBA(O32),\"\"),\"\"))","v":26},{"$f":"HYPERLINK(MouseOver(P32),IFERROR(IF(OR($Z$3=\"ü\",ObtenerMesVBA(P32)=$K$5),ObtenerDíaVBA(P32),\"\"),\"\"))","v":27},{"$f":"HYPERLINK(MouseOver(Q32),IFERROR(IF(OR($Z$3=\"ü\",ObtenerMesVBA(Q32)=$K$5),ObtenerDíaVBA(Q32),\"\"),\"\"))","v":28},null,null,{"$f":"HYPERLINK(MouseOver(T32),IFERROR(IF(OR($Z$3=\"ü\",ObtenerMesVBA(T32)=$T$5),ObtenerDíaVBA(T32),\"\"),\"\"))","v":20},{"$f":"HYPERLINK(MouseOver(U32),IFERROR(IF(OR($Z$3=\"ü\",ObtenerMesVBA(U32)=$T$5),ObtenerDíaVBA(U32),\"\"),\"\"))","v":21},{"$f":"HYPERLINK(MouseOver(V32),IFERROR(IF(OR($Z$3=\"ü\",ObtenerMesVBA(V32)=$T$5),ObtenerDíaVBA(V32),\"\"),\"\"))","v":22},{"$f":"HYPERLINK(MouseOver(W32),IFERROR(IF(OR($Z$3=\"ü\",ObtenerMesVBA(W32)=$T$5),ObtenerDíaVBA(W32),\"\"),\"\"))","v":23},{"$f":"HYPERLINK(MouseOver(X32),IFERROR(IF(OR($Z$3=\"ü\",ObtenerMesVBA(X32)=$T$5),ObtenerDíaVBA(X32),\"\"),\"\"))","v":24},{"$f":"HYPERLINK(MouseOver(Y32),IFERROR(IF(OR($Z$3=\"ü\",ObtenerMesVBA(Y32)=$T$5),ObtenerDíaVBA(Y32),\"\"),\"\"))","v":25},{"$f":"HYPERLINK(MouseOver(Z32),IFERROR(IF(OR($Z$3=\"ü\",ObtenerMesVBA(Z32)=$T$5),ObtenerDíaVBA(Z32),\"\"),\"\"))","v":26}]
[null,{"$f":"HYPERLINK(MouseOver(B33),IFERROR(IF(OR($Z$3=\"ü\",ObtenerMesVBA(B33)=$B$5),ObtenerDíaVBA(B33),\"\"),\"\"))","v":25},{"$f":"HYPERLINK(MouseOver(C33),IFERROR(IF(OR($Z$3=\"ü\",ObtenerMesVBA(C33)=$B$5),ObtenerDíaVBA(C33),\"\"),\"\"))","v":26},{"$f":"HYPERLINK(MouseOver(D33),IFERROR(IF(OR($Z$3=\"ü\",ObtenerMesVBA(D33)=$B$5),ObtenerDíaVBA(D33),\"\"),\"\"))","v":27},{"$f":"HYPERLINK(MouseOver(E33),IFERROR(IF(OR($Z$3=\"ü\",ObtenerMesVBA(E33)=$B$5),ObtenerDíaVBA(E33),\"\"),\"\"))","v":28},{"$f":"HYPERLINK(MouseOver(F33),IFERROR(IF(OR($Z$3=\"ü\",ObtenerMesVBA(F33)=$B$5),ObtenerDíaVBA(F33),\"\"),\"\"))","v":29},{"$f":"HYPERLINK(MouseOver(G33),IFERROR(IF(OR($Z$3=\"ü\",ObtenerMesVBA(G33)=$B$5),ObtenerDíaVBA(G33),\"\"),\"\"))","v":30},{"$f":"HYPERLINK(MouseOver(H33),IFERROR(IF(OR($Z$3=\"ü\",ObtenerMesVBA(H33)=$B$5),ObtenerDíaVBA(H33),\"\"),\"\"))","v":31},null,null,{"$f":"HYPERLINK(MouseOver(K33),IFERROR(IF(OR($Z$3=\"ü\",ObtenerMesVBA(K33)=$K$5),ObtenerDíaVBA(K33),\"\"),\"\"))","v":29},{"$f":"HYPERLINK(MouseOver(L33),IFERROR(IF(OR($Z$3=\"ü\",ObtenerMesVBA(L33)=$K$5),ObtenerDíaVBA(L33),\"\"),\"\"))","v":30},{"$f":"HYPERLINK(MouseOver(M33),IFERROR(IF(OR($Z$3=\"ü\",ObtenerMesVBA(M33)=$K$5),ObtenerDíaVBA(M33),\"\"),\"\"))","v":""},{"$f":"HYPERLINK(MouseOver(N33),IFERROR(IF(OR($Z$3=\"ü\",ObtenerMesVBA(N33)=$K$5),ObtenerDíaVBA(N33),\"\"),\"\"))","v":""},{"$f":"HYPERLINK(MouseOver(O33),IFERROR(IF(OR($Z$3=\"ü\",ObtenerMesVBA(O33)=$K$5),ObtenerDíaVBA(O33),\"\"),\"\"))","v":""},{"$f":"HYPERLINK(MouseOver(P33),IFERROR(IF(OR($Z$3=\"ü\",ObtenerMesVBA(P33)=$K$5),ObtenerDíaVBA(P33),\"\"),\"\"))","v":""},{"$f":"HYPERLINK(MouseOver(Q33),IFERROR(IF(OR($Z$3=\"ü\",ObtenerMesVBA(Q33)=$K$5),ObtenerDíaVBA(Q33),\"\"),\"\"))","v":""},null,null,{"$f":"HYPERLINK(MouseOver(T33),IFERROR(IF(OR($Z$3=\"ü\",ObtenerMesVBA(T33)=$T$5),ObtenerDíaVBA(T33),\"\"),\"\"))","v":27},{"$f":"HYPERLINK(MouseOver(U33),IFERROR(IF(OR($Z$3=\"ü\",ObtenerMesVBA(U33)=$T$5),ObtenerDíaVBA(U33),\"\"),\"\"))","v":28},{"$f":"HYPERLINK(MouseOver(V33),IFERROR(IF(OR($Z$3=\"ü\",ObtenerMesVBA(V33)=$T$5),ObtenerDíaVBA(V33),\"\"),\"\"))","v":29},{"$f":"HYPERLINK(MouseOver(W33),IFERROR(IF(OR($Z$3=\"ü\",ObtenerMesVBA(W33)=$T$5),ObtenerDíaVBA(W33),\"\"),\"\"))","v":30},{"$f":"HYPERLINK(MouseOver(X33),IFERROR(IF(OR($Z$3=\"ü\",ObtenerMesVBA(X33)=$T$5),ObtenerDíaVBA(X33),\"\"),\"\"))","v":31},{"$f":"HYPERLINK(MouseOver(Y33),IFERROR(IF(OR($Z$3=\"ü\",ObtenerMesVBA(Y33)=$T$5),ObtenerDíaVBA(Y33),\"\"),\"\"))","v":""},{"$f":"HYPERLINK(MouseOver(Z33),IFERROR(IF(OR($Z$3=\"ü\",ObtenerMesVBA(Z33)=$T$5),ObtenerDíaVBA(Z33),\"\"),\"\"))","v":""}]
[null,{"$f":"HYPERLINK(MouseOver(B34),IFERROR(IF(OR($Z$3=\"ü\",ObtenerMesVBA(B34)=$B$5),ObtenerDíaVBA(B34),\"\"),\"\"))","v":""},{"$f":"HYPERLINK(MouseOver(C34),IFERROR(IF(OR($Z$3=\"ü\",ObtenerMesVBA(C34)=$B$5),ObtenerDíaVBA(C34),\"\"),\"\"))","v":""},{"$f":"HYPERLINK(MouseOver(D34),IFERROR(IF(OR($Z$3=\"ü\",ObtenerMesVBA(D34)=$B$5),ObtenerDíaVBA(D34),\"\"),\"\"))","v":""},{"$f":"HYPERLINK(MouseOver(E34),IFERROR(IF(OR($Z$3=\"ü\",ObtenerMesVBA(E34)=$B$5),ObtenerDíaVBA(E34),\"\"),\"\"))","v":""},{"$f":"HYPERLINK(MouseOver(F34),IFERROR(IF(OR($Z$3=\"ü\",ObtenerMesVBA(F34)=$B$5),ObtenerDíaVBA(F34),\"\"),\"\"))","v":""},{"$f":"HYPERLINK(MouseOver(G34),IFERROR(IF(OR($Z$3=\"ü\",ObtenerMesVBA(G34)=$B$5),ObtenerDíaVBA(G34),\"\"),\"\"))","v":""},{"$f":"HYPERLINK(MouseOver(H34),IFERROR(IF(OR($Z$3=\"ü\",ObtenerMesVBA(H34)=$B$5),ObtenerDíaVBA(H34),\"\"),\"\"))","v":""},null,null,{"$f":"HYPERLINK(MouseOver(K34),IFERROR(IF(OR($Z$3=\"ü\",ObtenerMesVBA(K34)=$K$5),ObtenerDíaVBA(K34),\"\"),\"\"))","v":""},{"$f":"HYPERLINK(MouseOver(L34),IFERROR(IF(OR($Z$3=\"ü\",ObtenerMesVBA(L34)=$K$5),ObtenerDíaVBA(L34),\"\"),\"\"))","v":""},{"$f":"HYPERLINK(MouseOver(M34),IFERROR(IF(OR($Z$3=\"ü\",ObtenerMesVBA(M34)=$K$5),ObtenerDíaVBA(M34),\"\"),\"\"))","v":""},{"$f":"HYPERLINK(MouseOver(N34),IFERROR(IF(OR($Z$3=\"ü\",ObtenerMesVBA(N34)=$K$5),ObtenerDíaVBA(N34),\"\"),\"\"))","v":""},{"$f":"HYPERLINK(MouseOver(O34),IFERROR(IF(OR($Z$3=\"ü\",ObtenerMesVBA(O34)=$K$5),ObtenerDíaVBA(O34),\"\"),\"\"))","v":""},{"$f":"HYPERLINK(MouseOver(P34),IFERROR(IF(OR($Z$3=\"ü\",ObtenerMesVBA(P34)=$K$5),ObtenerDíaVBA(P34),\"\"),\"\"))","v":""},{"$f":"HYPERLINK(MouseOver(Q34),IFERROR(IF(OR($Z$3=\"ü\",ObtenerMesVBA(Q34)=$K$5),ObtenerDíaVBA(Q34),\"\"),\"\"))","v":""},null,null,{"$f":"HYPERLINK(MouseOver(T34),IFERROR(IF(OR($Z$3=\"ü\",ObtenerMesVBA(T34)=$T$5),ObtenerDíaVBA(T34),\"\"),\"\"))","v":""},{"$f":"HYPERLINK(MouseOver(U34),IFERROR(IF(OR($Z$3=\"ü\",ObtenerMesVBA(U34)=$T$5),ObtenerDíaVBA(U34),\"\"),\"\"))","v":""},{"$f":"HYPERLINK(MouseOver(V34),IFERROR(IF(OR($Z$3=\"ü\",ObtenerMesVBA(V34)=$T$5),ObtenerDíaVBA(V34),\"\"),\"\"))","v":""},{"$f":"HYPERLINK(MouseOver(W34),IFERROR(IF(OR($Z$3=\"ü\",ObtenerMesVBA(W34)=$T$5),ObtenerDíaVBA(W34),\"\"),\"\"))","v":""},{"$f":"HYPERLINK(MouseOver(X34),IFERROR(IF(OR($Z$3=\"ü\",ObtenerMesVBA(X34)=$T$5),ObtenerDíaVBA(X34),\"\"),\"\"))","v":""},{"$f":"HYPERLINK(MouseOver(Y34),IFERROR(IF(OR($Z$3=\"ü\",ObtenerMesVBA(Y34)=$T$5),ObtenerDíaVBA(Y34),\"\"),\"\"))","v":""},{"$f":"HYPERLINK(MouseOver(Z34),IFERROR(IF(OR($Z$3=\"ü\",ObtenerMesVBA(Z34)=$T$5),ObtenerDíaVBA(Z34),\"\"),\"\"))","v":""}]
[]
[null,"û",{"$f":"\" \" & Idiomas!$A$15","v":" Evento activo de ratón sobre celda"},null,null,null,null,null,null,null,9,7,3,";",4,8,":",null,null,null,null,null,null,null,{"$f":"Idiomas!$A$14 & \" \"","v":"Velocidad de la animación "},1]
[{"$f":"MAX(IF(Rango_NSerie_Fechas<Rango_Día,Rango_NSerie_Fechas,-999999))","v":-222218},null,null,null,null,null,null,null,null,null,null,null,null,null,null,null,null,null,null,null,null,null,null,null,null,{"$f":"MIN(IF(Rango_NSerie_Fechas>Rango_Día,Rango_NSerie_Fechas,9999999))","v":-115792}]
["×",{"$f":"ObtenerDíaElegido(Rango_Día)","v":"viernes, 15 de octubre de 1582"},null,null,null,null,null,null,null,null,null,null,null,null,null,null,null,null,null,null,null,null,null,null,null,"Ø",-115858]
[null,{"$f":"INDEX(Rango_Eventos_Día,4*Rango_Página-3,1)","v":"Primer día Gregoriano en Italia, España, Polonia, Portugal y USA: Texas, Florida, California, Nevada, Arizona y New Mexico (eliminados 10 días)"},null,null,null,null,null,{"$f":"INDEX(Rango_Eventos_Día,4*Rango_Página-2,1)","v":""},null,null,null,null,null,{"$f":"INDEX(Rango_Eventos_Día,4*Rango_Página-1,1)","v":""},null,null,null,null,null,{"$f":"INDEX(Rango_Eventos_Día,4*Rango_Página,1)","v":""},null,null,null,null,null,"Ù"]
[null,null,null,null,null,null,null,null,null,null,null,null,null,null,null,null,null,null,null,null,null,null,null,null,null,1]
[null,null,null,null,null,null,null,null,null,null,null,null,null,null,null,null,null,null,null,null,null,null,null,null,null,"Ú"]
[]
[null,{"$f":"Idiomas!$A$2","v":"AUTOR"},null,"#ExcelPedroWave"]
[null,{"$f":"Idiomas!$A$3","v":"BLOG"},null,"https://pedrowave.blogspot.com"]
[null,"COPYRIGHT",null,"https://creativecommons.org/licenses/by-nc-sa/4.0/deed.en"]
[]
["Ú"]
[]
[{"$f":"IF(TEXT(Rango_AñoCen,\"00\") & TEXT(Rango_AñoUni,\"00\") & \"-\" & TEXT(B$27,\"00\")=\"0100-00\",2958435,\nObtenerSerieFechaISO(TEXT(Rango_AñoCen,\"00\") & TEXT(Rango_AñoUni,\"00\") & \"-\" & TEXT(B$27,\"00\") & \"-01\"))","v":-115872},{"$f":"K27-1","v":10},{"$f":"C5","v":"2024-10-01"},null,null,null,{"$f":"LEFT(TEXT(ObtenerAñoVBA(A27),\"0000\"),2)","v":"15"},{"$f":"RIGHT(TEXT(ObtenerAñoVBA(A27),\"0000\"),2)","v":"82"},null,{"$f":"ObtenerSerieFechaISO(TEXT(Rango_AñoCen,\"00\") & TEXT(Rango_AñoUni,\"00\") & \"-\" & TEXT(K$27,\"00\") & \"-01\")","v":-115841},{"$f":"Rango_MesNum","v":11},{"$f":"Rango_MesNom","v":"2024-11-01"},null,null,null,{"$f":"Rango_AñoCen","v":15},{"$f":"Rango_AñoUni","v":82},null,{"$f":"IFERROR(ObtenerSerieFechaISO(TEXT(Rango_AñoCen,\"00\") & TEXT(Rango_AñoUni,\"00\") & \"-\" & TEXT(T$27,\"00\") & \"-01\"),-657434)","v":-115811},{"$f":"K27+1","v":12},{"$f":"U5","v":"2024-12-01"},null,null,null,{"$f":"LEFT(TEXT(ObtenerAñoVBA(S27),\"0000\"),2)","v":"15"},{"$f":"RIGHT(TEXT(ObtenerAñoVBA(S27),\"0000\"),2)","v":"82"}]
[null,{"$f":"Rango_DíaSemana","v":"1900-01-02"},{"$f":"B28+1","v":"1900-01-03"},{"$f":"C28+1","v":"1900-01-04"},"1900-01-05","1900-01-06","1900-01-07","1900-01-08",null,null,{"$f":"Rango_DíaSemana","v":"1900-01-02"},{"$f":"K28+1","v":"1900-01-03"},{"$f":"L28+1","v":"1900-01-04"},"1900-01-05","1900-01-06","1900-01-07","1900-01-08",null,null,{"$f":"Rango_DíaSemana","v":"1900-01-02"},{"$f":"T28+1","v":"1900-01-03"},{"$f":"U28+1","v":"1900-01-04"},"1900-01-05","1900-01-06","1900-01-07","1900-01-08"]
[null,{"$f":"$A$27+1-ObtenerNúmDíaSemanaVBA($A$27,Rango_DíaSemana)","v":-115876},{"$f":"B29+1","v":-115875},{"$f":"C29+1","v":-115874},{"$f":"D29+1","v":-115873},{"$f":"E29+1","v":-115872},{"$f":"F29+1","v":-115871},{"$f":"G29+1","v":-115870},null,null,{"$f":"$J$27+1-ObtenerNúmDíaSemanaVBA($J$27,Rango_DíaSemana)","v":-115841},{"$f":"K29+1","v":-115840},{"$f":"L29+1","v":-115839},{"$f":"M29+1","v":-115838},{"$f":"N29+1","v":-115837},{"$f":"O29+1","v":-115836},{"$f":"P29+1","v":-115835},null,null,{"$f":"$S$27+1-ObtenerNúmDíaSemanaVBA($S$27,Rango_DíaSemana)","v":-115813},{"$f":"T29+1","v":-115812},{"$f":"U29+1","v":-115811},{"$f":"V29+1","v":-115810},{"$f":"W29+1","v":-115809},{"$f":"X29+1","v":-115808},{"$f":"Y29+1","v":-115807}]
[null,{"$f":"H29+1","v":-115869},-115868,-115867,-115866,-115865,-115864,-115863,null,null,{"$f":"Q29+1","v":-115834},-115833,-115832,-115831,-115830,{"$f":"O30+1","v":-115829},-115828,null,null,{"$f":"Z29+1","v":-115806},-115805,-115804,-115803,-115802,{"$f":"X30+1","v":-115801},-115800]
[null,{"$f":"H30+1","v":-115862},-115861,-115860,-115859,-115858,-115857,-115856,null,null,{"$f":"Q30+1","v":-115827},-115826,-115825,-115824,-115823,-115822,-115821,null,null,{"$f":"Z30+1","v":-115799},-115798,-115797,-115796,-115795,-115794,-115793]
[null,{"$f":"H31+1","v":-115855},-115854,-115853,-115852,-115851,-115850,-115849,null,null,{"$f":"Q31+1","v":-115820},-115819,-115818,-115817,-115816,-115815,-115814,null,null,{"$f":"Z31+1","v":-115792},-115791,-115790,-115789,-115788,-115787,-115786]
[null,{"$f":"H32+1","v":-115848},-115847,-115846,-115845,-115844,-115843,-115842,null,null,{"$f":"Q32+1","v":-115813},-115812,-115811,-115810,-115809,-115808,-115807,null,null,{"$f":"Z32+1","v":-115785},-115784,-115783,-115782,-115781,-115780,-115779]
[null,{"$f":"H33+1","v":-115841},-115840,-115839,-115838,-115837,-115836,-115835,null,null,{"$f":"Q33+1","v":-115806},-115805,-115804,-115803,-115802,-115801,-115800,null,null,{"$f":"Z33+1","v":-115778},-115777,-115776,-115775,-115774,-115773,-115772]
[]
[null,null,null,null,null,null,null,null,null,null,null,null,null,null,null,null,null,null,{"$f":"Idiomas!$A$19","v":"Primer día gregoriano: "},{"$f":"IFERROR(SMALL(IF(LEFT(Rango_Eventos,10)=\"Primer día\",ROW(Rango_Eventos)-MIN(ROW(Rango_Fechas))+1,\"\"),ROW()-ROW(T35)),0)","v":1},{"$f":"IF(T36=0,\"\",INDEX(Rango_Fechas,T36))","v":"01-01-0100"}]
[null,null,null,null,null,null,null,null,null,null,null,null,null,null,null,null,null,null,null,3,"15-10-1582",null,null,{"$f":"INDEX(Rango_MesesNom,Rango_PonNumMes,1)","v":"2024-11-01"},null,11]
[null,{"$f":"Idiomas!$A$8 & \" \" & Rango_Día_Elegido","v":"Eventos del viernes, 15 de octubre de 1582"},null,null,null,null,null,null,null,null,null,null,null,null,null,null,null,{"$f":"Idiomas!$A$16","v":"Fila"},null,4,"20-12-1582",null,null,{"$f":"Idiomas!$A$9","v":"Meses"},null,{"$f":"Idiomas!$A$10","v":"Núm"}]
[null,{"$f":"IF(R39=0,\"\",INDEX(Rango_Eventos,R39))","v":"Primer día Gregoriano en Italia, España, Polonia, Portugal y USA: Texas, Florida, California, Nevada, Arizona y New Mexico (eliminados 10 días)"},null,null,null,null,null,null,null,null,null,null,null,null,null,null,null,{"$f":"IFERROR(SMALL(IF(Rango_Día=Rango_NSerie_Fechas,ROW(Rango_Eventos)-MIN(ROW(Rango_NSerie_Fechas))+1,\"\"),ROW()-ROW(B38)),0)","v":3},null,5,"11-01-1583",null,null,"2024-01-01",null,1]
[null,"",null,null,null,null,null,null,null,null,null,null,null,null,null,null,null,0,null,6,"16-10-1583",null,null,"2024-02-01",null,2]
[null,"",null,null,null,null,null,null,null,null,null,null,null,null,null,null,null,0,null,7,"01-11-1587",null,null,"2024-03-01",null,3]
[null,"",null,null,null,null,null,null,null,null,null,null,null,null,null,null,null,0,null,8,"02-09-1610",null,null,"2024-04-01",null,4]
[null,"",null,null,null,null,null,null,null,null,null,null,null,null,null,null,null,0,null,10,"01-03-1700",null,null,"2024-05-01",null,5]
[null,"",null,null,null,null,null,null,null,null,null,null,null,null,null,null,null,0,null,11,"14-09-1752",null,null,"2024-06-01",null,6]
[null,"",null,null,null,null,null,null,null,null,null,null,null,null,null,null,null,0,null,34,"01-01-1873",null,null,"2024-07-01",null,7]
[null,"",null,null,null,null,null,null,null,null,null,null,null,null,null,null,null,0,null,37,"1900-03-01",null,null,"2024-08-01",null,8]
[null,"",null,null,null,null,null,null,null,null,null,null,null,null,null,null,null,0,null,44,"1916-04-14",null,null,"2024-09-01",null,9]
[null,"",null,null,null,null,null,null,null,null,null,null,null,null,null,null,null,0,null,46,"1918-02-14",null,null,"2024-10-01",null,10]
[null,"",null,null,null,null,null,null,null,null,null,null,null,null,null,null,null,0,null,55,"1923-03-01",null,null,"2024-11-01",null,11]
[null,"",null,null,null,null,null,null,null,null,null,null,null,null,null,null,null,0,null,56,"1927-01-01",null,null,"2024-12-01",null,12]

{"sheet":"Fechas","index":1,"n_rows":150,"n_cols":3,"rows_kept":150,"cut":false,"hidden":false,"merged":[]}
["Fecha","Evento","Núm. Serie VBA"]
["01-01-0100","Primer día de VBA",{"$f":"ObtenerSerieFechaVBA(A2, ISNUMBER(A2))","v":-657434}]
["01-08-1291","Suiza - Alianza contra el Sacro Imperio Romano Germánico en 1291.",{"$f":"ObtenerSerieFechaVBA(A3, ISNUMBER(A3))","v":-222218}]
["15-10-1582","Primer día Gregoriano en Italia, España, Polonia, Portugal y USA: Texas, Florida, California, Nevada, Arizona y New Mexico (eliminados 10 días)",-115858]
["20-12-1582","Primer día Gregoriano en Francia y USA: Mississippi Valley (eliminados 10 días)",-115792]
["11-01-1583","Primer día Gregoriano en Alemania Católica (eliminados 10 días)",{"$f":"ObtenerSerieFechaVBA(A6, ISNUMBER(A6))","v":-115770}]
["16-10-1583","Primer día Gregoriano en Austria (eliminados 10 días)",{"$f":"ObtenerSerieFechaVBA(A7, ISNUMBER(A7))","v":-115492}]
["01-11-1587","Primer día Gregoriano en Hungría (eliminados 10 días)",{"$f":"ObtenerSerieFechaVBA(A8, ISNUMBER(A8))","v":-114015}]
["02-09-1610","Primer día Gregoriano en Alemania - Prusia (eliminados 10 días)",{"$f":"ObtenerSerieFechaVBA(A9, ISNUMBER(A9))","v":-105674}]
["01-12-1640","Portugal - Restauración de la independencia de Portugal (de España) en 1640.",-94626]
["01-03-1700","Primer día Gregoriano en Alemania y Suiza - Areas Protestantes (eliminados 10 días)",{"$f":"ObtenerSerieFechaVBA(A11, ISNUMBER(A11))","v":-72987}]
["14-09-1752","Primer día Gregoriano en Inglaterra (y colonias), Canada y USA: Washington, Oregon, and the Eastern Seaboard (eliminados 11 días)",-53797]
["03-09-1783","Estados Unidos de América - (4 de julio) Declaración de la independencia del Reino Unido en 1776. Consumada el 3 de septiembre de 1783.",-42486]
["01-01-1804","Haití - Independencia de Francia en 1804.",-35062]
["20-07-1810","Colombia - Día de la independencia De España. Declaración de la independencia: 20 de julio de 1810.",-32670]
["16-09-1810","México - Independencia de España declarada en 1810.",-32612]
["15-05-1811","Paraguay - (Día de Independencia) Independencia de España en 1811.",-32371]
["05-07-1811","Venezuela - Declaración de la independencia de España en 1811.",-32320]
["09-07-1816","Argentina - Independencia de España en 1816.",-30489]
["12-02-1818","Chile - Se declaró su independencia de España, que fue reconocida por el gobierno español el 24 de abril de 1844.",-29906]
["25-03-1821","Grecia - Declaración de la independencia del Imperio otomano en 1821.",-28769]
["28-07-1821","Perú - Independencia de España en 1821.",-28644]
["15-09-1821","Costa Rica - Independencia de España en 1821.",-28595]
["15-09-1821","El Salvador - Independencia de España en 1821.",-28595]
["15-09-1821","Guatemala - Independencia de España en 1821.",-28595]
["15-09-1821","Honduras - Independencia del España en 1821.",-28595]
["15-09-1821","Nicaragua - Independencia de España en 1821",-28595]
["24-05-1822","Ecuador - Independencia de España el 10 de agosto de 1809. La Independencia real ocurrió el 24 de mayo de 1822.",-28344]
["07-09-1822","Brasil - Declarada la Independencia de Portugal en esa fecha en 1822. No fue reconocida hasta el 29 de agosto de 1825.",-28238]
["06-08-1825","Bolivia - Independencia de España en 1825.",-27174]
["25-08-1828","Uruguay - Declaración de independencia de las Provincias Unidas del Río de la Plata en 1828.",-26059]
["27-02-1844","República Dominicana - Independencia de Haití en 1844.",-20395]
["26-07-1847","Liberia - Independencia de los Estados Unidos en 1847.",-19150]
["01-07-1867","Canadá - Independencia del Reino Unido (reconocida en 1931 con el Tratado de Westminster) en 1867.",-11870]
["01-01-1873","Primer día Gregoriano en Japón (eliminados 12 días)",{"$f":"ObtenerSerieFechaVBA(A35, ISNUMBER(A35))","v":-9859}]
["09-05-1877","Rumanía - Independencia del Imperio otomano en 1877.",-8270]
["12-06-1898","Filipinas - El Día de la Independencia Day de Filipinas: Araw ng Kalayaan. Independencia de España en 1898.",-566]
["1900-03-01","Primer día de Excel",61]
["1901-01-01","Australia - Independencia del Reino Unido en 1901.",367]
["1903-11-03","Panamá - Independencia de España en 1821. Es también celebrado el 3 de noviembre, como el Día de la Separación de Colombia de 1903",1403]
["1905-05-17","Noruega - Independencia de Suecia en 1905. Celebrada el 17 de mayo, el Día de la Constitución de Noruega en Eidsvoll en 1814.",1964]
["1907-07-01","Nueva Zelanda - Independencia del Reino Unido (reconocida en 1931 con el Tratado de Westminster) en 1907.",2739]
["1908-09-22","Bulgaria - Independencia De jure del Imperio otomano en 1908",3188]
["1912-11-28","Albania - Independencia del Imperio otomano en 1912.",4716]
["1916-04-14","Primer día Gregoriano en Bulgaria (eliminados 13 días)",{"$f":"ObtenerSerieFechaVBA(A45, ISNUMBER(A45))","v":5949}]
["1917-12-06","Finlandia - Independencia de Rusia in 1917.",6550]
["1918-02-14","Primer día Gregoriano en Rusia y Estonia (eliminados 13 días)",{"$f":"ObtenerSerieFechaVBA(A47, ISNUMBER(A47))","v":6620}]
["1918-02-24","Estonia - Independencia de Rusia Bolchevique en 1918.",6630]
["1918-10-28","República Checa - Como Checoslovaquia, marca la restauración de la independencia del Imperio austrohúngaro en 1918.",6876]
["1918-10-31","Austria - Independencia del Imperio austrohúngaro en 1918.",6879]
["1918-11-11","Polonia - (Święto Niepodległości) Restauración de la independencia de Polonia en 1918.",6890]
["1918-11-18","Letonia - Independencia de Rusia en 1918.",6897]
["1919-08-19","Afganistán - Independencia del Reino Unido en 1919.",7171]
["1921-11-26","Mongolia - Independencia de China el 11 de julio de 1921",8001]
["1922-12-06","República de Irlanda - Independencia del Reino Unido en 1922.",8376]
["1923-03-01","Primer día Gregoriano en Grecia (eliminados 13 días)",{"$f":"ObtenerSerieFechaVBA(A56, ISNUMBER(A56))","v":8461}]
["1927-01-01","Primer día Gregoriano en Turquía (eliminados 13 días)",{"$f":"ObtenerSerieFechaVBA(A57, ISNUMBER(A57))","v":9863}]
["1929-02-11","Vaticano - Tratado Laterano firmado con Italia en 1929.",10635]
["1931-12-11","Sudáfrica - Independencia del Reino Unido en 1931. No es un Feriado público. La Unión Sudafricana se formó e 31 de mayo de 1910 y La República Sudafricana se declaró el 31 de mayo de 1961.",11668]
["1943-11-22","Líbano - Independencia de Francia en 1943.",16032]
["1944-06-17","Islandia - Independencia de Dinamarca en 1944.",16240]
["1944-07-03","Bielorrusia - Liberación de Minsk de la ocupación Alemana por tropas Soviéticas en 1944.",16256]
["1945-08-15","Corea del Sur - (Gwangbokjeol) Independencia del Japón en 1945.",16664]
["1945-08-17","Indonesia - Proclamación de la independencia (Hari Proklamasi Kemerdekaan R.I.) de Holanda. Independencia de Japón en 1945.",16666]
["1945-09-02","Vietnam - Declaración de la independencia de Francia en 1945.",16682]
["1946-05-25","Jordania - Independencia del Reino Unido en 1946.",16947]
["1947-08-14","Pakistán - (Yaum e Azadi) Independencia del Reino Unido en 1947.",17393]
["1947-08-15","India - Día de la independencia (en India: Independencia viene a ser Libertad / Azaadi)]] del Reino Unido en 1947.",17394]
["1948-01-04","Birmania - Independencia del Reino Unido en 1948",17536]
["1948-02-04","Sri Lanka - Independencia del Reino Unido en 1948.",17567]
["1948-05-14","Israel - Independencia fue proclamada cuando se independizó del Mandato Británico de Palestina (Reino Unido) el 14 de mayo de 1948.",17667]
["1948-09-09","Corea del Norte - Fundación del DPRK en 1948.",17785]
["1956-03-02","Marruecos - Independencia de Francia y España en 1956",20516]
["1956-03-20","Túnez - Declaración de independencia de Francia en 1956.",20534]
["1957-03-06","Ghana - Independencia del Reino Unido en 1957.",20885]
["1957-08-31","Malasia - (Hari Merdeka) Independencia del Reino Unido en 1957",21063]
["1960-06-26","Madagascar - Independencia de Francia en 1960.",{"$f":"ObtenerSerieFechaVBA(A77, ISNUMBER(A77))","v":22093}]
["1960-06-30","República Democrática del Congo - Independencia de Bélgica en 1960.",22097]
["1960-08-01","Benín - Independencia de Francia en 1960.",22129]
["1960-08-03","Níger - Independencia de Francia en 1960",22131]
["1960-08-05","Burkina Faso - Independencia de Francia en 1960",22133]
["1960-08-11","Chad - Independencia de Francia en 1960.",22139]
["1960-08-16","Chipre - Independencia de Reino Unido el 16 de agosto de 1960",22144]
["1960-09-22","Malí - Independencia de Francia en 1960",22181]
["1960-10-01","Nigeria - Independencia del Reino Unido en 1960",22190]
["1961-01-26","Kuwait - Independencia del Reino Unido en 1961.",22307]
["1961-04-27","Sierra Leona - Independencia del Reino Unido en 1961.",22398]
["1961-12-09","Tanzania - Declaración de la independencia del Reino Unido en 1961.",22624]
["1962-07-01","Burundi - Independencia de Bélgica en 1962.",22828]
["1962-07-01","Ruanda - Independencia de Bélgica en 1962.",22828]
["1962-07-05","Argelia - Independencia de Francia en 1962.",22832]
["1962-08-06","Jamaica - Independencia del Reino Unido en 1962.",22864]
["1962-08-31","Trinidad y Tobago - Independencia del Reino Unido en 1962.",22889]
["1963-12-12","Kenia - Independencia del Reino Unido en 1963.",23357]
["1964-07-06","Malaui - Independencia del Reino Unido en 1964.",23564]
["1964-09-21","Malta - Independencia del Reino Unido en 1964.",23641]
["1964-10-24","Zambia - Declaración de la independencia del Reino Unido en 1964.",23674]
["1965-02-18","Gambia - Independencia del Reino Unido en 1965.",23791]
["1965-07-26","Maldivas - Independencia del Reino Unido en 1965",23949]
["1965-08-09","Singapur - (Fiesta Nacional) marca la separación de Malasia en 1965.",23963]
["1966-05-26","Guyana - Independencia del Reino Unido en 1966.",24253]
["1966-09-30","Botsuana - Emancipación del Reino Unido en 1966.",24380]
["1966-10-04","Lesoto - Independencia del Reino Unido en 1966.",24384]
["1966-11-30","Barbados - Independencia del Reino Unido en 1966.",24441]
["1967-11-30","Yemen - Declaración de la independencia del Reino Unido en 1967.",24806]
["1968-03-12","Mauricio - Independencia del Reino Unido en 1968.",24909]
["1968-09-06","Suazilandia - Independencia del Reino Unido en 1968.",25087]
["1970-06-04","Tonga - Independencia del Reino Unido en 1970.",25723]
["1971-03-26","Bangladés - Independencia fue declarada de Pakistán y originó una guerra de 9 meses, terminando el 16 de diciembre de 1971.",26018]
["1971-08-15","Baréin - Independencia del Reino Unido en 1971.",26160]
["1971-09-03","Catar - Independencia del Reino Unido en 1971.",26179]
["1971-12-02","Emiratos Árabes Unidos - (Día Nacional) Independencia del Reino Unido en 1971.",26269]
["1973-07-10","Bahamas - Independencia del Reino Unido en 1973.",26855]
["1973-09-24","Guinea-Bissau - Independencia de Portugal en 1973",26931]
["1975-06-25","Mozambique - Independencia de Portugal en 1975",27570]
["1975-07-05","Cabo Verde - Independencia del Portugal en 1975.",27580]
["1975-07-12","Santo Tomé y Príncipe - Independencia de Portugal en 1975.",27587]
["1975-09-16","Nueva Guinea - Independencia de Australia de los territorios de Nueva Guinea, y Papua, en 1975.",27653]
["1975-11-11","Angola - Independencia de Portugal en 1975.",27709]
["1975-11-25","Surinam - Independencia de Holanda en 1975.",27723]
["1976-06-29","Seychelles - Independencia del Reino Unido en 1976.",27940]
["1980-04-18","Zimbabue - Declaración de la independencia del Reino Unido en 1980.",29329]
["1981-09-21","Belice - Independencia del Reino Unido en 1981.",29850]
["1981-11-01","Antigua y Barbuda - Independencia del Reino Unido en 1981.",29891]
["1984-01-01","Brunéi - Independencia del Reino Unido en 1984",30682]
["1989-11-17","Las Repúblicas Eslovacas - Como Checoslovaquia, marca la Revolución de 1989.",32829]
["1990-03-11","Lituania - Independencia de Rusia y Alemania en febrero de 1918; independencia de la Unión Soviética en marzo de 1990.",32943]
["1990-03-21","Namibia - Independencia de Sudáfrica por mandato en 1990",32953]
["1990-12-26","Eslovenia - La fecha de la publicación oficial de los resultados del plebiscito por la independencia en 1990.",33233]
["1991-05-25","República de Macedonia del Norte - (Den na nezavisnosta o Ден на независноста) Independencia de Yugoslavia en 1991.",33383]
["1991-05-26","Georgia - Independencia de la Unión Soviética en 1991.",33384]
["1991-06-12","Rusia - (El día de Rusia). La separación formal de la Unión Soviética es el 25 de diciembre de 1991.",33401]
["1991-08-24","Ucrania - Independencia de la Unión Soviética en 1991.",33474]
["1991-08-27","Moldavia - Independencia de la Unión Soviética en 1991",33477]
["1991-08-31","Kirguistán - Independencia de la Unión Soviética en 1991.",33481]
["1991-09-01","Uzbekistán - Independencia de la Unión Soviética en 1991.",33482]
["1991-09-09","Tayikistán - Independencia de la Unión Soviética en 1991.",33490]
["1991-09-21","Armenia - Independencia de la Unión Soviética en 1991.",33502]
["1991-10-08","Croacia - Independencia de Yugoslavia en 1991.",33519]
["1991-10-18","Azerbaiyán - Independencia de la Unión Soviética en 1991.",33529]
["1991-12-16","Kazajistán - Independencia de la Unión Soviética en 1991.",{"$f":"ObtenerSerieFechaVBA(A141, ISNUMBER(A141))","v":33588}]
["1992-03-01","Bosnia y Herzegovina - Independencia de Yugoslavia en 1992.",33664]
["1993-01-01","Eslovaquia - La independencia de la división de Checoslovaquia (feriado público) se efectuó el 1 de enero de 1993.",33970]
["1993-05-24","Eritrea - Independencia de Etiopía en 1993.",34113]
["2002-05-20","Timor del Este - Independencia de Indonesia en 2002.",37396]
["2006-05-21","Serbia - El comienzo de la primera rebelión en contra de la ocupación del Imperio otomano en 1804. La independencia contemporánea se produjo el 21 de mayo de 2006.",38858]
["2006-05-21","Montenegro - Su unión con Serbia acabó en 2006",38858]
["2008-02-17","Kosovo - Declaración de la independencia de Serbia en 2008.",39495]
[{"$f":"TODAY()","v":"2024-03-01"},"Hoy",45352]
["9999-12-31","Último día de Excel y VBA",2958465]

{"sheet":"Idiomas","index":2,"n_rows":19,"n_cols":3,"rows_kept":19,"cut":false,"hidden":false,"merged":[]}
[{"$f":"Rango_Idioma_Elegido","v":"Español"},"Español","English"]
[{"$f":"INDEX($B2:$C2,MATCH($A$1,$B$1:$C$1,0))","v":"AUTOR"},"AUTOR","AUTHOR"]
[{"$f":"INDEX($B3:$C3,MATCH($A$1,$B$1:$C$1,0))","v":"BLOG"},"BLOG","BLOG"]
["Calendario Gregoriano","Calendario Gregoriano","Gregorian Calendar"]
["Error Calendario Gregoriano","Error Calendario Gregoriano","Gregorian Calendar Error"]
["La semana comienza en","La semana comienza en","Week starts in"]
["Muestra los días de otros meses","Muestra los días de otros meses","Shows the days of other months"]
["Eventos del","Eventos del","Events of"]
["Meses","Meses","Months"]
["Núm","Núm","No."]
["Fecha","Fecha","Date"]
["Evento","Evento","Event"]
["Núm. Serie VBA","Núm. Serie VBA","VBA Serial No."]
["Velocidad de la animación","Velocidad de la animación","Animation speed"]
["Evento activo de ratón sobre celda","Evento activo de ratón sobre celda","Mouseover cell event active"]
["Fila","Fila","Row"]
["Idioma:","Idioma:","Language:"]
["Calendario Gregoriano desde:","Calendario Gregoriano desde:","Gregorian Calendar from:"]
["Primer día gregoriano: ","Primer día gregoriano: ","First gregorian date:"]